Cogmind - Beta 14 @@@ ROGUE MODE // 2024.08.26 @ 19:23:58 Player: Olafz Result: Destroyed by G-47 Trooper with Particle Gun Performance ------------- Evolutions (2) 1000 Regions Visited (3) 600 Robots Destroyed (0) 0 Value Destroyed (0) 0 Prototype IDs (0) 0 Alien Tech Used (0) 0 Bonus (470) 470 TOTAL SCORE: 2070 Bonus ------- Pacifist 470 Cogmind --------- Core Integrity 0/550 Matter 158/300 Energy 100/100 System Corruption 2% Temperature Cool (9) Movement Core (50) Location -8/Materials Parts ------- > --- POWER (1) -------- (None) > --- PROPULSION (4) --- (None) > --- UTILITY (4) ------ (None) > --- WEAPON (2) ------- (None) > --- INVENTORY (5) ---- Improved Flight Unit Peak State ------------ > --- POWER ------------ (None) > --- PROPULSION ------- VTOL Module > --- UTILITY ---------- Improved Sensor Array System Shield > --- WEAPON ----------- (None) > --- INVENTORY -------- Improved Flight Unit [Rating: 8] Favorites ----------- Power None Propulsion VTOL Module Flight Unit VTOL Module Utility Improved Sensor Array Device Improved Sensor Array Hackware System Shield Weapon None Build | -11 -10 -9 -8 ------- Run | Yrd Mat Mat Mat Slots Evolved 4 | . . 2 2 Power . | . . . . Propulsion 2 | . . 1 1 Utility 2 | . . 1 1 Weapon . | . . . . Parts Attached 3 | . . 1 2 Power . | . . . . Engine . | . . . . Core . | . . . . Reactor . | . . . . Propulsion 1 | . . 1 . Treads . | . . . . Leg . | . . . . Wheel . | . . . . Hover . | . . . . Flight 1 | . . 1 . Utility 2 | . . . 2 Device 1 | . . . 1 Storage . | . . . . Processor . | . . . . Hackware 1 | . . . 1 Protection . | . . . . Artifact . | . . . . Weapon . | . . . . Energy Gun . | . . . . Energy Cannon . | . . . . Ballistic Gun . | . . . . Ballistic Cannon . | . . . . Launcher . | . . . . Special Weapon . | . . . . Impact Weapon . | . . . . Slashing Weapon . | . . . . Piercing Weapon . | . . . . Special Melee Weapon . | . . . . Unidentified Prototypes . | . . . . Parts Lost 1 | . . . 1 Power . | . . . . Propulsion . | . . . . Utility 1 | . . . 1 Weapon . | . . . . Highest Loss Streak 1 | . . . 1 To Critical Strikes . | . . . . Average Slot Usage (%) 8 | . . 9 11 Flight 5 | . . 9 4 Device 2 | . . . 5 Peak Build Rating 8 | . . 2 8 Average Rating 2 | . . 1 3 On Entrance . | . . . 2 Naked Turns 85 | . 42 9 34 Heaviest Build 1 | . . . 1 Greatest Support 4 | 3 3 4 4 Greatest Overweight (x) . | . . . . Average Overweight (x) . | . . . . Largest Inventory Capacity 5 | 5 5 5 5 Average Capacity 5 | 5 5 5 5 Most Carried 1 | . . . 1 Average Carried . | . . . . Final Capacity 5 | 5 5 5 5 Final Carried 1 | . . . 1 Class Distribution -------------------- 100% | Mutant Dominant Class ---------------- Mutant | -10/Materials Mutant | -9/Materials Mutant | -8/Materials Resources | -11 -10 -9 -8 ----------- Run | Yrd Mat Mat Mat Matter Collected 72 | 72 . . . Remotely . | . . . . Salvage Created . | . . . . Parts . | . . . . Haulers Intercepted . | . . . . Recyclers Shooed . | . . . . Parts Field Recycled . | . . . . Retrieved Matter . | . . . . Parts Self-Destructed . | . . . . Prevented . | . . . . Kills | -11 -10 -9 -8 ------- Run | Yrd Mat Mat Mat Combat Hostiles Destroyed . | . . . . Classes Destroyed . | . . . . Best Kill Streak . | . . . . Combat Bots Only . | . . . . Max Kills in Single Turn . | . . . . Gunslinging . | . . . . Exploded . | . . . . Melee . | . . . . Uniques/NPCs Destroyed . | . . . . Combat | -11 -10 -9 -8 -------- Run | Yrd Mat Mat Mat Hostile Shots Fired 93 | . 4 34 55 Missed 47 | . 3 20 24 Damage Taken 765 | . 19 179 567 Core 731 | . 19 155 557 Absorbed by Shields . | . . . . Core Remaining (%) 84 | 100 92 61 . Volleys Fired . | . . . . Largest . | . . . . Hottest . | . . . . Shots Fired . | . . . . Gun . | . . . . Cannon . | . . . . Launcher . | . . . . Special . | . . . . Kinetic . | . . . . Thermal . | . . . . Explosive . | . . . . Electromagnetic . | . . . . Robot Hit Streak . | . . . . Robot Miss Streak . | . . . . Penetration Max . | . . . . Secondary Targets . | . . . . Shots Hit Robots . | . . . . Core Hits 1 | . . . 1 Critical Kills . | . . . . Critical Parts Destroyed . | . . . . Critical Strikes . | . . . . Melee Attacks . | . . . . Impact . | . . . . Slashing . | . . . . Piercing . | . . . . Sneak Attacks . | . . . . Combat Hostiles . | . . . . Follow-up Attacks . | . . . . Damage Inflicted 23 | . 15 . 8 Guns . | . . . . Cannons . | . . . . Explosions . | . . . . Melee . | . . . . Ramming 23 | . 15 . 8 Kinetic . | . . . . Thermal . | . . . . Explosive . | . . . . Electromagnetic . | . . . . Impact . | . . . . Slashing . | . . . . Piercing . | . . . . Highest Corruption 2 | . . . 2 Average Corruption 2 | . . . 2 Corruption Purged . | . . . . Corruption Blocked . | . . . . Overload Shots . | . . . . Overflow Damage . | . . . . Projectiles . | . . . . Explosions . | . . . . Melee . | . . . . Knockbacks . | . . . . Impact . | . . . . Kinetic . | . . . . Secondary . | . . . . Self-Inflicted Damage 10 | . 7 . 3 Shots . | . . . . Rammed 3 | . 1 . 2 Targets Rammed 3 | . 1 . 2 Kicked . | . . . . Crushed . | . . . . Highest Temperature . | . . . . Average Temperature . | . . . . Received Heat Transfer 120 | . 6 69 45 Siege Activations . | . . . . Robots Corrupted . | . . . . Combat Hostiles . | . . . . Parts Fried . | . . . . Impact Corruptions . | . . . . Robots Melted . | . . . . Combat Hostiles . | . . . . Parts Melted . | . . . . Heat Transferred . | . . . . Parts Sabotaged . | . . . . Parts Stolen . | . . . . Parts Stripped . | . . . . Power Chain Reactions . | . . . . Alert | -11 -10 -9 -8 ------- Run | Yrd Mat Mat Mat Peak Influence 126 | . 24 99 126 Initial 41 | . . 9 41 Average 57 | . 15 49 91 Maximum Alert Level . | . . . . Low Security (%) 100 | 100 100 100 100 Level 1 . | . . . . Level 2 . | . . . . Level 3 . | . . . . Level 4 . | . . . . Level 5 . | . . . . High Security . | . . . . Max Security . | . . . . Squads Dispatched 4 | . . . 4 Investigation 1 | . . . 1 Extermination . | . . . . Reinforcement 3 | . . . 3 Assault . | . . . . Garrison . | . . . . Intercept . | . . . . Searches Triggered . | . . . . Construction Impeded . | . . . . Haulers Reinforced . | . . . . Active Scanning Responses . | . . . . Cargo Convoy Interrupts . | . . . . Stealth | -11 -10 -9 -8 --------- Run | Yrd Mat Mat Mat Distress Signals 2 | . . 2 . Communications Jammed . | . . . . Distress Signals . | . . . . Times Spotted 28 | . 3 11 14 Peak Tracking Total 12 | . 4 9 12 Tactical Retreats 2 | . . 2 . Traps | -11 -10 -9 -8 ------- Run | Yrd Mat Mat Mat Traps Triggered 1 | . . . 1 Indirectly . | . . . . Trap Hack Attempts . | . . . . Triggered . | . . . . Disarmed . | . . . . Reprogrammed . | . . . . Reused . | . . . . Traps Extracted . | . . . . Installed . | . . . . Triggered . | . . . . Machines | -11 -10 -9 -8 ---------- Run | Yrd Mat Mat Mat Machines Disabled . | . . . . Max in Single Turn . | . . . . Machines Repaired . | . . . . Machines Dismantled . | . . . . Machines Sabotaged . | . . . . Overloaded Fab Kills . | . . . . Hacking | -11 -10 -9 -8 --------- Run | Yrd Mat Mat Mat Machines Accessed 3 | . 2 . 1 Terminals 3 | . 2 . 1 Fabricators . | . . . . Repair Stations . | . . . . Recycling Units . | . . . . Scanalyzers . | . . . . Garrison Access . | . . . . Total Hacks 11 | . 7 . 4 Successful 3 | . 2 . 1 Failed 8 | . 5 . 3 Catastrophic 2 | . 1 . 1 Database Lockouts . | . . . . Manual 11 | . 7 . 4 Terminals 11 | . 7 . 4 Fabricators . | . . . . Repair Stations . | . . . . Recycling Units . | . . . . Scanalyzers . | . . . . Garrison Access . | . . . . Terminal Hacks . | . . . . Fabricator Hacks . | . . . . Repair Station Hacks . | . . . . Recycling Unit Hacks . | . . . . Scanalyzer . | . . . . Garrison Access Hacks . | . . . . Unauthorized Hacks 3 | . 2 . 1 Terminals 3 | . 2 . 1 Botnet 3 | . 2 . 1 Fabricators . | . . . . Repair Stations . | . . . . Recycling Units . | . . . . Scanalyzers . | . . . . Garrison Access . | . . . . Data Cores Recovered . | . . . . Used . | . . . . Hacking Detections 3 | . 2 . 1 Full Trace Events . | . . . . Feedback Events . | . . . . Feedback Blocked . | . . . . Robot Schematics Acquired . | . . . . Robots Built . | . . . . Authchips . | . . . . Time . | . . . . Total Robot Build Rating . | . . . . Part Schematics Acquired . | . . . . Parts Built . | . . . . Authchips . | . . . . Time . | . . . . Total Part Build Rating . | . . . . Parts Repaired . | . . . . Time . | . . . . Parts Recycled . | . . . . Recycled Matter . | . . . . Retrieved Matter . | . . . . Retrieved Components . | . . . . Parts Scanalyzed . | . . . . Part Schematics Acquired . | . . . . Parts Damaged . | . . . . Bothacking | -11 -10 -9 -8 ------------ Run | Yrd Mat Mat Mat Used RIF Installer . | . . . . Robots Hacked . | . . . . Non-combat . | . . . . Combat . | . . . . Robot Hacks Applied . | . . . . Relay Couplers Released . | . . . . Fabnet Peak Effective % . | . . . . Robots Rewired . | . . . . Allies Hacked . | . . . . Hacks Repelled . | . . . . Allies | -11 -10 -9 -8 -------- Run | Yrd Mat Mat Mat Total Allies . | . . . . Largest Group . | . . . . Highest-Rated Group . | . . . . Highest-Rated Ally . | . . . . Total Orders . | . . . . Ally Attacks . | . . . . Total Damage . | . . . . Kills . | . . . . Allies Corrupted . | . . . . Allies Melted . | . . . . Intel | -11 -10 -9 -8 ------- Run | Yrd Mat Mat Mat Robot Analysis Total . | . . . . Derelict Logs Recovered . | . . . . Drone Launches . | . . . . Drone Recoveries . | . . . . Exploration | -11 -10 -9 -8 ------------- Run | Yrd Mat Mat Mat Turns Passed 230 | 9 42 90 89 Spaces Moved 539 | 18 81 241 199 Core 207 | 18 81 17 91 Treads . | . . . . Legs . | . . . . Wheels . | . . . . Hover . | . . . . Flight 332 | . . 224 108 Fastest Speed 35 | 50 50 35 35 Average Speed 40 | 50 50 36 41 Slowest Speed 50 | 50 50 50 50 Overloaded Moves . | . . . . Propulsion Burnouts . | . . . . Robots Hopped 19 | . . 15 4 Cave-ins Triggered . | . . . . Exploration Rate (%) 24 | 3 34 32 28 Regions Visited 3 Branch Regions . Pre-discovered Areas . | . . . . Known Exits Taken . | . . . . Unknown Exits Taken 3 | 1 1 1 . Scrap Searched . | . . . . Spaces Dug . | . . . . Terrain Destroyed . | . . . . Melee . | . . . . Projectile . | . . . . AOE . | . . . . Terrain Rammed . | . . . . Walls Destroyed . | . . . . Machines Disabled . | . . . . Actions | -11 -10 -9 -8 --------- Run | Yrd Mat Mat Mat Total 525 | 17 81 227 200 Wait 1 | . . 1 . Move 499 | 17 80 211 191 Hop 18 | . . 14 4 Pick Up 1 | . . . 1 Fast Attach 3 | . . 1 2 Attach . | . . . . Detach . | . . . . Swap . | . . . . Drop . | . . . . Fire . | . . . . Melee . | . . . . Ram 3 | . 1 . 2 Kick . | . . . . Crush . | . . . . Escape Stasis . | . . . . Rewire . | . . . . Trap . | . . . . Miscellaneous . | . . . . Route ------- -11/Scrapyard -10/Materials -9/Materials (discovered 2 exits: *Mat / [*Min]) -8/Materials History --------- Turn | Location | Event 5 | -11/Scrapyard | Discovered new exit (range 12) 10 | -11/Scrapyard | Entered Materials 50 | -10/Materials | Discovered new exit (range 6) 52 | -10/Materials | Entered another Materials area 52 | -9/Materials | Evolved 2 slots: Propulsion x1, Utility x1 101 | -9/Materials | Discovered new exit (range 6) 140 | -9/Materials | Discovered new exit (range 4) 142 | -9/Materials | Entered another Materials area 142 | -8/Materials | Evolved 2 slots: Propulsion x1, Utility x1 207 | -8/Materials | Core integrity fell below 50% 223 | -8/Materials | Core integrity fell below 20% 231 | -8/Materials | Destroyed by G-47 Trooper with Particle Gun Last Messages --------------- ALERT: Suspicious intruders detected, dispatching Cutter reinforcements to area. Acquired System Shield. ALERT: Hostiles spotted, dispatching reinforcements to Terminal M010. VTOL Module severed. System Shield destroyed. System corrupted by crushing effect (+2). Knocked back. C-17 Slicer knocked back. Imp. Sensor Array severed. Slug penetrates Wall. ALERT: Hostiles spotted, dispatching reinforcements to Terminal M001. Penetrated by Slug. Triggered Alarm Trap. An alarm sounds. ALERT: Alarm triggered, dispatching investigation squad. Slug penetrates Wall. K-01 Serf cleans the Nuclear Reactor. Slammed into K-01 Serf. Slammed into Y-45 Defender. Map ----- +----------------------------------------------------+ | ?????# + +????????????????? | | ?????# # #????????????????? | | ?????# ! # #????????????????? | | ?????# ?# #????????????????? | | ?????######?# ^#???#+#??????????? | | ????????????# #???# #??????????? | | ????????????# #???# #??????????? | | ????????????# ##### ############ | | ????????????# | | ????????????# | | ????????????# | | ????????????##+##### #######????? | | ?????????????? ????# #??????????? | | ?????????????? ????# #??????????? | | ??????????????"????# #??######??? | | ???????????????????# #?? #??? | | ???????????????????# #? [ ???? | | ???????????????????# #? ????? | | ???????????????????# # """""????? | | ???????????????????# # """""????? | | ???????????????????# + """""????? | | ??????????#+#??????# # #??? | | ?????##???# #??????# # """"" #??? | | ###### #### ######## #?""""" #??? | | #! # +?"""""????? | | # """k@ Y #?? ?????? | | # """c#Y //g ###/##??###?????? | | #""" """ #cc/g! #? ??????????? | | #""" # /!h #? ?????????? | | #"S """ # # """ "G????????? | | #""" """ # # """ " " ??????? | | # "" """ " ###### """ #?????? | | # # #????# #?????? | | ?######### #????# #?????? | | ??????# #???? ???[? #?????? | | ??????# #???????????####?????? | | ?????####+#/###??????????????????? | | ????# #??????????????????? | | ????# [ #??????????????????? | | ????# #??????????????????? | | ????# #??????????????????? | | ????###########??????????????????? | | | | | | | | | | | | | | | | | +----------------------------------------------------+ Best States ------------- Heat Dissipation 31 Energy Generation 5 Energy Capacity 100 Matter Stores 176 Matter Capacity 300 Sight Range 16 Robot Scan Range 15 Terrain Scan Density 10 Evasion (%) 63 Defensive Hacking 10 Item Schematics ----------------- None Robot Schematics ------------------ None Fabricated ------------ Nothing Alien Tech Used ----------------- None Achievements -------------- None Challenges ------------ None Game ------ Seed TransmissionControlChip Manual? 0 Play Time 00:08:20 Cumulative 251.2 hours Start 2024.08.26 @ 19:17:31 End 2024.08.26 @ 19:23:58 Sessions 1 Manual Loads 0 Difficulty Rogue Special Mode None Game No. 462 Rogue 460 Adventurer 2 Explorer 0 Win Type - Total 14 Types 11/0/1/2/0/0/0/0/0 Lore% 73 Gallery% 68 Achievement% 57 Wizard Run 0 Options --------- Layout 0 ASCII 0 Keyboard 1 Movement Numpad Keybinds 1 Fullscreen 2 Font 18/SmallcapsGlow Map View 76x50 Zoom Use 0% Tactical HUD 1 Map Filters NONE Filters NONE Steam 1 RUN: b25fbbc3-2b95-43d4-9e20-c18ec7e07576